[Event "Israel National League 2024"]
[Site "Israel"]
[Date "2024.03.01"]
[Round "9.20"]
[White "Sarana, Alexey"]
[Black "Bitensky, Igor"]
[Result "1-0"]
[ECO "A58"]
[WhiteElo "2695"]
[BlackElo "2384"]
[Annotator "TA"]
[PlyCount "59"]
[EventDate "2024.01.07"]
[EventType "team-tourn"]
[EventCountry "ISR"]
[SourceTitle "playchess.com"]
[Source "ChessBase"]
[SourceQuality "1"]
[TimeControl "40/5400+30:1800+30"]

{[%evp 9,59,34,43,39,51,49,50,42,50,21,21,29,52,61,56,71,79,75,92,81,84,74,73,82,75,74,91,95,93,98,91,102,123,125,119,103,188,158,254,243,270,258,309,270,510,383,458,489,1277,1265,1395,1368]} 1. d4 {[%emt 0:00:43]} Nf6 {[%emt 0:00:36]} 2. c4 {[%emt 0:02:12][%cal Bc2c4,Bc4b5,Bb5a6][%mdl 32]} c5 {[%emt 0:00:59]} 3. d5 {[%emt 0:00:20]} b5 {[%emt 0:00:04]} 4. cxb5 {[%emt 0:01:36]} a6 {[%emt 0:00:03]} 5. bxa6 {[%emt 0:03:06]} g6 {[%emt 0:00:11][%cal Of8g7]} 6. Nc3 {[%emt 0:00:09]} Bg7 {[%emt 0:00:30][%cal Oe8g8]} 7. e4 {[%emt 0:00:07] aiming for e5.} O-O {[%emt 0:00:06][%cal Oe7e6]} 8. Nf3 {[%emt 0:03:46][%cal Oa6a7] White is slightly better.} Qa5 {[%emt 0:05:35]} 9. Nd2 {[%emt 0:05:26]} Bxa6 {[%emt 0:04:34]} 10. Be2 {[%emt 0:00:21]} Bxe2 {[%emt 0:07:05]} 11. Qxe2 {[%emt 0:00:31]} Qa6 {[%emt 0:01:02]} 12. Nc4 {[%emt 0:03:36]} e6 {[%emt 0:25:02]} 13. O-O {[%emt 0:03:08]} exd5 {[%emt 0:00:05]} 14. exd5 {[%emt 0:11:50]} Re8 {[%emt 0:00:31]} 15. Be3 {[%emt 0:01:39]} Ne4 {[%emt 0:12:44]} 16. Nxe4 {[%emt 0:05:54]} ({Inferior is} 16. Bxc5 Bxc3 17. bxc3 Nd6 $17) 16... Rxe4 {[%emt 0:00:08]} 17. Rac1 {[%emt 0:01:58]} d6 {[%emt 0:07:17][%cal Ob8d7,Bd7d6,Bd6c5][%mdl 32]} 18. Qc2 {[%emt 0:00:53]} f5 {[%emt 0:02:11][%cal Ob8d7] [#]} 19. b4 $1 {[%emt 0:10:32] And now b5 would win.} Nd7 {[%emt 0:07:14]} 20. bxc5 {[%emt 0:01:44]} dxc5 {[%emt 0:02:10] [#]} 21. a3 $1 {[%emt 0:00:11]} Rae8 {[%emt 0:01:55]} 22. g3 {[%emt 0:02:19]} Qf6 {[%emt 0:21:28]} (22... Bd4 $16) 23. Qb3 {[%emt 0:06:04]} g5 {[%emt 0:00:00]} (23... Rb8 $16 24. Qc2 h5) 24. Nd2 $18 {[%emt 0:01:45][%csl LRc5,LRe4][%cal Bc4d2,Bd2f3,Bf3d4][%mdl 32]} R4e7 {[%emt 0:00:00]} 25. Bxc5 {[%emt 0:02:16]} Re2 {[%emt 0:00:00][%cal Od7c5]} 26. Nf3 {[%emt 0:03:07] Threatens to win with Bd4.} Qh6 $2 {[%emt 0:01:24]} (26... Qb2 27. Qd3 Nxc5 28. Rxc5 g4) 27. Bd4 {[%emt 0:02:22] Hoping for Rc6.} Bxd4 {[%emt 0:00:31]} 28. Nxd4 {[%emt 0:00:02] White is clearly winning.} R8e3 {[%emt 0:00:27]} (28... R2e4 $142 29. d6+ (29. Nxf5 Qf6 $18) 29... Kf8 30. Nxf5 Qe6 31. Qxe6 R4xe6) 29. Rc8+ {[%emt 0:00:57]} (29. fxe3 $2 Qxh2#) 29... Kf7 {[%emt 0:00:14]} 30. Qb5 {[%emt 0:00:37] Weighted Error Value: White=0.11 (very precise) /Black=0.30.  Mistake:       	---       	Black=4      OK:         	White=14    	Black=10     Best:        	---       	Black=1      Strong:       	White=1     	---} (30. fxe3 $2 Qxh2#) 1-0

[Event "Israel National League 2024"]
[Site "Israel"]
[Date "2024.03.01"]
[Round "9.21"]
[White "Gorodetzky, Matan"]
[Black "Zanan, Evgeny"]
[Result "1/2-1/2"]
[ECO "C50"]
[WhiteElo "2325"]
[BlackElo "2487"]
[Annotator "TA"]
[PlyCount "92"]
[EventDate "2024.01.07"]
[EventType "team-tourn"]
[EventCountry "ISR"]
[SourceTitle "playchess.com"]
[Source "ChessBase"]
[SourceQuality "1"]
[TimeControl "40/5400+30:1800+30"]

{[%evp 12,92,21,10,30,11,19,20,7,25,25,0,2,0,0,0,0,0,0,-16,-11,-14,0,-11,0,-18,-8,-77,-57,-63,0,0,0,0,0,0,-3,-2,0,-11,-12,-10,-8,-8,-8,-8,-8,-8,-8,-8,-8,-8,-8,-8,-8,-8,-8,-63,-60,-60,-8,-15,0,0,0,0,0,0,0,0,0,0,0,0,0,0,0,0,0,0,0,0,0]} 1. e4 {[%emt 0:01:07]} e5 {[%emt 0:00:39]} 2. Nf3 {[%emt 0:00:09]} Nc6 {[%emt 0:00:10]} 3. Bc4 {[%emt 0:00:09]} Nf6 {[%emt 0:00:23]} 4. d3 {[%emt 0:00:10]} Bc5 {[%emt 0:00:21]} 5. Nc3 {[%emt 0:00:34]} h6 {[%emt 0:02:30]} 6. O-O {[%emt 0:01:06]} d6 {[%emt 0:00:12]} 7. a3 {[%emt 0:01:41]} Bg4 {[%emt 0:09:23]} 8. h3 {[%emt 0:00:55]} Bxf3 {[%emt 0:02:32]} 9. Qxf3 {[%emt 0:00:08]} Nd4 {[%emt 0:00:12][%csl LRc2,LRf3] Against Ne2} 10. Qd1 {[%emt 0:00:44]} c6 {[%emt 0:00:13]} 11. Be3 {[%emt 0:03:33]} O-O {[%emt 0:24:20]} 12. Ba2 {[%emt 0:01:02]} a5 {[%emt 0:04:13]} 13. Kh1 {[%emt 0:04:27]} b5 {[%emt 0:09:20]} 14. Ne2 {[%emt 0:04:49]} Nxe2 {[%emt 0:08:40]} 15. Bxc5 {[%emt 0:04:03]} dxc5 {[%emt 0:05:57]} 16. Qxe2 {[%emt 0:00:10]} Qd6 {[%emt 0:00:05]} 17. g3 {[%emt 0:01:23]} Rfe8 {[%emt 0:00:38]} 18. Qe3 {[%emt 0:01:10]} Rad8 {[%emt 0:07:56]} 19. f4 {[%emt 0:11:28] [#]} (19. Kg2 $11 {remains equal.}) 19... c4 $1 $17 {[%emt 0:03:46]} 20. Rad1 {[%emt 0:10:38]} (20. Rf3 a4) 20... Qd4 {[%emt 0:04:48]} (20... Re7 $15) 21. Qxd4 $11 {[%emt 0:03:08]} Rxd4 {[%emt 0:00:06]} 22. fxe5 {[%emt 0:05:43]} Rxe5 {[%emt 0:00:54]} 23. dxc4 {[%emt 0:00:14]} Rxd1 {[%emt 0:05:04]} 24. Rxd1 {[%emt 0:00:02][%mdl 4096] Endgame. KRB-KRN} b4 {[%emt 0:00:12]} 25. axb4 {[%emt 0:02:05]} axb4 {[%emt 0:00:07]} 26. Kg2 {[%emt 0:05:52]} c5 {[%emt 0:04:56][%cal Og7g6]} (26... Rxe4 27. Rd8+ Re8 28. Rxe8+ Nxe8 29. c5) 27. Rd8+ {[%emt 0:04:10]} Kh7 {[%emt 0:00:13]} 28. Bb1 {[%emt 0:00:07]} g6 {[%emt 0:01:10]} (28... Rxe4 $2 29. c3 bxc3 30. bxc3 $18 (30. Bxe4+ Nxe4 31. bxc3 Kg6 $18)) 29. c3 $1 {[%emt 0:02:39]} bxc3 {[%emt 0:00:05]} (29... Nxe4 30. cxb4 cxb4 31. Bc2) 30. bxc3 {[%emt 0:00:03]} Nxe4 {[%emt 0:00:16]} 31. Rd5 $1 {[%emt 0:00:10]} Rxd5 {[%emt 0:02:24]} 32. cxd5 {[%emt 0:01:05] KB-KN} Nd6 {[%emt 0:00:02]} (32... Nxc3 $2 {too greedy.} 33. d6 $18) 33. Kf3 {[%emt 0:00:56]} Kg7 {[%emt 0:00:18]} 34. Kf4 {[%emt 0:00:57]} ({Better is} 34. Ke3 $1 $11) 34... Kf6 $15 {[%emt 0:01:28]} 35. Bd3 {[%emt 0:00:47]} g5+ {[%emt 0:01:40]} (35... c4 $1 $15 36. Be2 g5+ 37. Kg4 Kg6 (37... Ke5 38. Kh5 $11)) 36. Kg4 $1 $11 {[%emt 0:00:13] The position is equal.} Kg7 {[%emt 0:01:22]} 37. h4 {[%emt 0:02:22]} c4 {[%emt 0:00:28]} 38. Bb1 {[%emt 0:01:05]} f6 {[%emt 0:01:48]} 39. Kh5 {[%emt 0:02:04]} Nb5 {[%emt 0:00:32]} 40. Ba2 {[%emt 0:00:42]} Nd6 {[%emt 0:00:04]} 41. Bb1 {[%emt 0:30:03]} gxh4 {[%emt 0:07:49]} 42. Kxh4 {[%emt 0:00:00]} f5 {[%emt 0:00:04]} 43. Kh5 {[%emt 0:00:00]} Kf6 {[%emt 0:09:21]} 44. Kxh6 {[%emt 0:00:00]} Ke5 {[%emt 0:00:01]} 45. Kg5 {[%emt 0:00:00]} Nb5 {[%emt 0:00:23]} 46. Ba2 {[%emt 0:00:00]} Nd6 {[%emt 0:01:19] Weighted Error Value: White=0.09 (flawless) /Black=0.07 (flawless) .  Mistake:       	White=2     	Black=2      OK:         	White=18    	Black=24     Best:        	White=1     	Black=2      Strong:       	White=3     	---} 1/2-1/2

[Event "Israel National League 2024"]
[Site "Israel"]
[Date "2024.03.01"]
[Round "9.22"]
[White "Bronstein, Or"]
[Black "Stolyarsky, Yegor"]
[Result "1-0"]
[ECO "D30"]
[WhiteElo "2441"]
[BlackElo "2111"]
[Annotator "TA"]
[PlyCount "77"]
[EventDate "2024.01.07"]
[EventType "team-tourn"]
[EventCountry "ISR"]
[SourceTitle "playchess.com"]
[Source "ChessBase"]
[SourceQuality "1"]
[TimeControl "40/5400+30:1800+30"]

{[%evp 9,77,31,44,28,64,49,52,50,66,64,89,63,101,95,91,88,93,89,121,89,105,101,99,106,100,93,97,106,93,96,152,165,174,156,172,161,168,162,163,138,150,131,150,156,164,166,166,124,123,129,135,104,268,269,473,472,445,513,516,516,508,479,719,547,874,874,852,518,2444,2309]} 1. d4 {[%emt 0:00:24]} d5 {[%emt 0:08:15]} 2. c4 {[%emt 0:00:56]} e6 {[%emt 0:00:30]} 3. Nf3 {[%emt 0:00:52]} a6 {[%emt 0:00:24]} 4. Bg5 {[%emt 0:00:39]} Nf6 {[%emt 0:02:25]} 5. e3 {[%emt 0:00:46]} dxc4 {[%emt 0:00:42]} 6. Bxc4 {[%emt 0:00:31]} b5 {[%emt 0:00:19]} 7. Bd3 {[%emt 0:03:52]} Bb7 {[%emt 0:01:48]} 8. a4 {[%emt 0:09:13] White is slightly better.} b4 {[%emt 0:01:37]} 9. Nbd2 {[%emt 0:07:08]} Be7 {[%emt 0:00:32]} 10. Bxf6 {[%emt 0:02:32]} Bxf6 {[%emt 0:01:06]} 11. Qc2 {[%emt 0:00:10]} Nd7 {[%emt 0:04:16][%cal Oc7c5]} 12. Be4 {[%emt 0:09:53]} (12. Bxh7 g6 13. Bxg6 fxg6 $17) 12... Bxe4 {[%emt 0:10:39]} 13. Nxe4 {[%emt 0:00:03]} O-O {[%emt 0:02:32]} 14. O-O {[%emt 0:00:11]} Be7 {[%emt 0:01:11][%cal Oc7c5]} 15. Rac1 {[%emt 0:07:27]} Ra7 {[%emt 0:00:28]} 16. Rfd1 {[%emt 0:02:10]} Qa8 {[%emt 0:08:16][%cal Oc7c5]} 17. Nc5 {[%emt 0:10:41]} Nxc5 {[%emt 0:06:46]} 18. dxc5 {[%emt 0:00:02]} c6 {[%emt 0:02:55]} 19. Ne5 {[%emt 0:03:01][%cal Bf3e5,Be5d7,Bd7b6][%mdl 32]} Rc7 {[%emt 0:01:22]} ({Black should try} 19... a5 20. Qe4 Rc7) 20. Nd7 $36 {[%emt 0:10:00][%mdl 2048] White is in control. White has more active pieces.} Rd8 {[%emt 0:01:39]} 21. Nb6 {[%emt 0:00:07]} Rxd1+ {[%emt 0:00:11]} 22. Rxd1 {[%emt 0:00:08][%cal Bc1d1,Bd1d4,Bd4c4,Bc4c3][%mdl 32]} Qf8 {[%emt 0:00:29][%cal Oa6a5]} 23. a5 {[%emt 0:04:47]} g6 {[%emt 0:09:20]} 24. Rd4 {[%emt 0:03:33]} e5 {[%emt 0:11:52]} 25. Rc4 {[%emt 0:04:46]} Qd8 {[%emt 0:00:42]} 26. g3 {[%emt 0:00:49]} (26. Rxb4 $6 Bxc5 27. Rb3 (27. Rc4 Bxb6 28. axb6 Rd7 $11) 27... Rb7 $11) 26... b3 {[%emt 0:01:29]} 27. Qxb3 {[%emt 0:00:58]} Qd2 {[%emt 0:00:09]} 28. Qc3 {[%emt 0:02:01]} Qxc3 {[%emt 0:00:23]} 29. Rxc3 {[%emt 0:00:02][%mdl 4096] Endgame. KRB-KRN} e4 {[%emt 0:00:08]} 30. b4 {[%emt 0:11:46]} Rb7 $2 {[%emt 0:00:29] This move loses the game for Black.} (30... f5 $16 31. f4 h5) 31. Rc4 $18 {[%emt 0:00:39]} f5 $2 {[%emt 0:00:10]} (31... Bf6 {might work better.} 32. Rxe4 Ba1) 32. Rd4 {[%emt 0:02:25] White is clearly winning.} Kf7 {[%emt 0:00:15]} 33. Rd7 {[%emt 0:00:07]} Rxd7 {[%emt 0:02:07]} 34. Nxd7 {[%emt 0:00:02] KB-KN} Bf6 {[%emt 0:00:55]} 35. Nb8 $1 {[%emt 0:01:25][%csl LRa6,LRc6]} Bc3 {[%emt 0:00:07]} (35... Ke6 $142 36. Nxc6 (36. Nxa6 Be5 $16) 36... Kd5) 36. Nxa6 {[%emt 0:00:33]} Be5 {[%emt 0:04:13] [#]} 37. b5 $1 {[%emt 0:00:05]} cxb5 {[%emt 0:00:05]} 38. Nb4 {[%emt 0:00:08]} Bc3 {[%emt 0:01:35] [#]} (38... Bb8 $142 39. Nc6 b4 40. Nxb4 (40. Nxb8 $2 {loses.} b3 $19) 40... Ba7) 39. a6 $1 {[%emt 0:00:11] Weighted Error Value: White=0.23 (precise) /Black=0.22 (precise) .  Loses game:     	---       	Black=1      Mistake:       	---       	Black=3      Inaccurate:     	---       	Black=4      OK:         	White=10    	Black=17     Best:        	White=3     	---} 1-0

[Event "Israel National League 2024"]
[Site "Israel"]
[Date "2024.03.01"]
[Round "9.23"]
[White "Katkov, Michelle"]
[Black "Veinberg, Nimrod"]
[Result "0-1"]
[ECO "C54"]
[WhiteElo "2106"]
[BlackElo "2411"]
[Annotator "TA"]
[PlyCount "66"]
[EventDate "2024.01.07"]
[EventType "team-tourn"]
[EventCountry "ISR"]
[SourceTitle "playchess.com"]
[Source "ChessBase"]
[SourceQuality "1"]
[TimeControl "40/5400+30:1800+30"]

{[%evp 10,65,23,20,9,6,26,21,18,8,9,0,9,0,-3,-16,-7,0,0,-12,0,-19,-6,-25,-19,-54,-33,-182,-189,-187,-141,-285,-277,-257,-192,-206,-126,-849,-846,-1488,-1480,-1376,-867,-873,-845,-1081,-927,-1206,-816,-816,-801,-1172,-1141,-945,-941,-29998,-29999,-29999]} 1. e4 {[%emt 0:01:00]} e5 {[%emt 0:02:04]} 2. Nf3 {[%emt 0:00:06]} Nc6 {[%emt 0:00:18]} 3. Bc4 {[%emt 0:00:06]} Bc5 {[%emt 0:00:07]} 4. c3 {[%emt 0:00:07]} Nf6 {[%emt 0:00:16]} 5. d3 {[%emt 0:00:06]} d6 {[%emt 0:00:11]} 6. O-O {[%emt 0:00:13]} a5 {[%emt 0:00:15]} 7. Re1 {[%emt 0:01:53]} Ba7 {[%emt 0:01:11]} 8. Nbd2 {[%emt 0:02:04]} O-O {[%emt 0:01:18] The position is equal.} 9. Nf1 {[%emt 0:02:13]} Be6 {[%emt 0:01:01]} 10. Bb5 {[%emt 0:01:48]} Ne7 {[%emt 0:01:24]} 11. h3 {[%emt 0:06:41]} Ng6 {[%emt 0:04:56]} 12. Ng3 {[%emt 0:05:20]} c6 {[%emt 0:02:34]} 13. Ba4 {[%emt 0:00:07]} d5 {[%emt 0:09:13]} 14. exd5 {[%emt 0:03:10]} Nxd5 {[%emt 0:00:21]} 15. d4 {[%emt 0:00:50]} exd4 {[%emt 0:00:32]} 16. Nxd4 {[%emt 0:01:23]} Qc7 {[%emt 0:03:50]} 17. Ne4 {[%emt 0:12:11]} Rae8 {[%emt 0:14:01]} 18. Nxe6 {[%emt 0:15:32] White is now going downhill.} (18. Bb3 $15) 18... Rxe6 $19 {[%emt 0:02:04]} 19. Bd2 {[%emt 0:08:34]} Rfe8 {[%emt 0:06:36]} ({Black should play} 19... Ngf4 $19 20. c4 Nd3 21. Bxa5 (21. cxd5 $2 Rxe4 22. Rxe4 Nxf2 $19) 21... Nxf2 (21... Qxa5 $2 22. Qxd3 Nf4 23. Qf3 $19) 22. Nxf2 Qxa5 23. Rxe6 fxe6 24. cxd5 Rxf2 (24... Bxf2+ $2 25. Kh1 $19) (24... cxd5 25. Bd7 $17) (24... Qxd5 25. Bb3 $17) (24... exd5 $2 25. Kh1 $19)) 20. Bc2 {[%emt 0:03:04] [#]} (20. Qf3 $17) 20... f5 $1 {[%emt 0:04:07]} 21. c4 {[%emt 0:11:32]} (21. Ng5 Rxe1+ 22. Bxe1 Qg3 $19) 21... Nb4 {[%emt 0:10:26]} 22. Nc3 {[%emt 0:03:15]} Qg3 {[%emt 0:09:03]} 23. Be3 $2 {[%emt 0:02:09][%mdl 8192]} (23. c5 $17 Rxe1+ (23... Bxc5 24. Rxe6 Rxe6 25. Kh1 $16) 24. Bxe1 Bxc5 25. Kh1) 23... Rxe3 {[%emt 0:00:52]} (23... Bxe3 24. Rxe3 Qg5 25. Rxe6 Rxe6 26. g3 Nxc2 27. Qxc2 $19) 24. fxe3 {[%emt 0:06:14]} Nh4 {[%emt 0:02:15]} 25. Re2 {[%emt 0:00:46]} Bb8 {[%emt 0:02:29]} (25... Bxe3+ $2 26. Kh1 $19) 26. Kf1 {[%emt 0:08:43]} Qh2 {[%emt 0:00:44] ( -> ...Qh1+)} (26... Rxe3 27. Ne4 fxe4 28. Qd7 $11) 27. Rf2 {[%emt 0:00:29]} Nxc2 {[%emt 0:00:19]} 28. Qxc2 {[%emt 0:03:31]} Qh1+ {[%emt 0:03:57]} 29. Ke2 {[%emt 0:00:05]} Qxa1 {[%emt 0:00:06]} 30. Rf1 {[%emt 0:01:38] [#]} Rxe3+ $3 {[%emt 0:00:07][%mdl 512]} 31. Kf2 {[%emt 0:00:04]} Bg3+ {[%emt 0:00:07]} 32. Kg1 {[%emt 0:00:06] [#]} Qxf1+ $3 {[%emt 0:00:07]} 33. Kxf1 {[%emt 0:00:03]} Re1# {[%emt 0:00:39] Weighted Error Value: White=1.22/Black=0.57.  Loses game:     	White=1     	---        Mistake:       	White=2     	Black=1      Inaccurate:     	White=2     	Black=1      OK:         	White=5     	Black=7      Best:        	White=1     	Black=1      Strong:       	---       	Black=1} 0-1

[Event "Israel National League 2024"]
[Site "Israel"]
[Date "2024.03.01"]
[Round "9.24"]
[White "Kaspi, Alexander"]
[Black "Kunin, Pavel"]
[Result "0-1"]
[ECO "D35"]
[WhiteElo "2375"]
[BlackElo "2221"]
[Annotator "RC"]
[PlyCount "146"]
[EventDate "2024.01.07"]
[EventType "team-tourn"]
[EventCountry "ISR"]
[SourceTitle "playchess.com"]
[Source "ChessBase"]
[SourceQuality "1"]
[TimeControl "40/5400+30:1800+30"]

1. d4 {[%emt 0:00:16]} d5 {[%emt 0:00:52]} 2. c4 {[%emt 0:01:55]} e6 {[%emt 0:00:13]} 3. Nc3 {[%emt 0:00:07]} Be7 {[%emt 0:00:20]} 4. cxd5 {[%emt 0:01:01]} exd5 {[%emt 0:00:03]} 5. Bf4 {[%emt 0:00:07]} Nf6 {[%emt 0:00:18]} 6. e3 {[%emt 0:00:18]} O-O {[%emt 0:00:18]} 7. Bd3 {[%emt 0:04:57]} c6 {[%emt 0:01:23]} 8. Qc2 {[%emt 0:00:53]} Nbd7 {[%emt 0:03:30]} 9. Nf3 {[%emt 0:01:17]} Re8 {[%emt 0:00:29]} 10. O-O {[%emt 0:00:35]} Nf8 {[%emt 0:00:36]} 11. Rab1 {[%emt 0:06:13]} Ng6 {[%emt 0:02:22]} 12. Bg3 {[%emt 0:02:20]} Bd6 {[%emt 0:07:24]} 13. b4 {[%emt 0:02:51]} a6 {[%emt 0:04:11]} 14. a4 {[%emt 0:03:24]} Bg4 {[%emt 0:13:34]} 15. Nd2 {[%emt 0:04:06]} Bxg3 {[%emt 0:08:32]} 16. hxg3 {[%emt 0:05:52]} Qd6 {[%emt 0:00:12]} 17. Rfc1 {[%emt 0:01:42]} Rec8 {[%emt 0:03:25]} 18. Nb3 {[%emt 0:04:22]} Nf8 {[%emt 0:03:13]} 19. Nc5 {[%emt 0:02:12]} Qe7 {[%emt 0:01:21]} 20. b5 {[%emt 0:04:01]} axb5 {[%emt 0:00:12]} 21. axb5 {[%emt 0:00:08]} Ne6 {[%emt 0:05:10]} 22. N5a4 {[%emt 0:04:13]} Rc7 {[%emt 0:01:03]} 23. Nb6 {[%emt 0:04:52]} Rd8 {[%emt 0:01:04]} 24. Qb3 {[%emt 0:06:42]} Bh5 {[%emt 0:00:30]} 25. Nca4 {[%emt 0:09:17]} Bg6 {[%emt 0:00:42]} 26. Nc5 {[%emt 0:07:59]} Nxc5 {[%emt 0:01:04]} 27. Rxc5 {[%emt 0:00:10]} Ng4 {[%emt 0:06:36]} 28. Rbc1 {[%emt 0:04:46]} Bxd3 {[%emt 0:02:15]} 29. Qxd3 {[%emt 0:00:31]} Qg5 {[%emt 0:00:23]} 30. bxc6 {[%emt 0:05:25]} Rxc6 {[%emt 0:02:12]} 31. Rxc6 {[%emt 0:02:30]} bxc6 {[%emt 0:00:01]} 32. f3 {[%emt 0:06:27]} Nxe3 {[%emt 0:03:31]} 33. Qd2 {[%emt 0:02:02]} Re8 {[%emt 0:02:01]} 34. Re1 {[%emt 0:02:20]} h6 {[%emt 0:00:30]} 35. Na4 {[%emt 0:00:34]} Re6 {[%emt 0:01:07]} 36. Qd3 {[%emt 0:01:29]} Nf5 {[%emt 0:01:19]} 37. Rxe6 {[%emt 0:00:24]} fxe6 {[%emt 0:00:02]} 38. g4 {[%emt 0:00:14]} Qe3+ {[%emt 0:00:07]} 39. Qxe3 {[%emt 0:00:08]} Nxe3 {[%emt 0:00:07]} 40. Nc5 {[%emt 0:00:03]} Kf7 {[%emt 0:00:10]} 41. Kf2 {[%emt 0:31:14]} Nc2 {[%emt 0:30:09]} 42. Nb3 {[%emt 0:00:05]} Kf6 {[%emt 0:00:52]} 43. f4 {[%emt 0:00:00]} Nb4 {[%emt 0:00:00]} 44. Ke3 {[%emt 0:00:00]} Na6 {[%emt 0:00:00]} 45. Kf3 {[%emt 0:00:00]} Ke7 {[%emt 0:00:00]} 46. Kg3 {[%emt 0:00:00]} Kd6 {[%emt 0:00:00]} 47. Kh4 {[%emt 0:00:00]} g6 {[%emt 0:00:00]} 48. g5 {[%emt 0:00:00]} h5 {[%emt 0:00:00]} 49. g4 {[%emt 0:00:00]} hxg4 {[%emt 0:00:00]} 50. Kxg4 {[%emt 0:00:00]} Kc7 {[%emt 0:00:00]} 51. Kf3 {[%emt 0:00:00]} Kb6 {[%emt 0:00:00]} 52. Ke3 {[%emt 0:00:00]} Kb5 {[%emt 0:00:00]} 53. Nd2 {[%emt 0:00:00]} Kb4 {[%emt 0:00:00]} 54. Kd3 {[%emt 0:00:00]} c5 {[%emt 0:00:00]} 55. Nf3 {[%emt 0:00:00]} c4+ {[%emt 0:00:00]} 56. Kc2 {[%emt 0:00:00]} Nc7 {[%emt 0:00:00]} 57. Ne5 {[%emt 0:00:00]} Nb5 {[%emt 0:00:00]} 58. Nxg6 {[%emt 0:00:00]} Nxd4+ {[%emt 0:00:00]} 59. Kd1 {[%emt 0:00:00]} c3 {[%emt 0:00:00]} 60. Ne5 {[%emt 0:00:00]} Kb3 {[%emt 0:01:57]} 61. g6 {[%emt 0:00:00]} Nf5 {[%emt 0:07:50]} 62. Kc1 {[%emt 0:00:00]} Ng7 {[%emt 0:00:53]} 63. Nf3 {[%emt 0:00:00]} Kc4 {[%emt 0:00:24]} 64. Kc2 {[%emt 0:00:05]} d4 {[%emt 0:01:29]} 65. Ne5+ {[%emt 0:00:05]} Kd5 {[%emt 0:00:02]} 66. Kd3 {[%emt 0:00:06]} Nh5 {[%emt 0:00:18]} 67. Kc2 {[%emt 0:01:11]} Ke4 {[%emt 0:00:14]} 68. Nc6 {[%emt 0:00:14]} Ke3 {[%emt 0:00:55]} 69. Kb3 {[%emt 0:01:11]} Ng7 {[%emt 0:01:11]} 70. Kc2 {[%emt 0:00:20]} Nf5 {[%emt 0:00:29]} 71. Kd1 {[%emt 0:02:50]} d3 {[%emt 0:00:12]} 72. Nb4 {[%emt 0:00:56]} c2+ {[%emt 0:00:05]} 73. Kc1 {[%emt 0:00:36]} Ke2 {[%emt 0:00:02]} 0-1